[Event "Titled Tuesday Blitz December 7 2021"]
[White "Villalba, Marcelo"]
[Black "Golubka, Petro"]
[WhiteFideId "3701859"]
[BlackFideId "14114224"]
[WhiteElo "2160"]
[BlackElo "2392"]
[Result "0-1"]
[Round "07"]
[TimeControl "180+1"]
[Date "2021.12.07"]
[WhiteClock "0:00:04"]
[BlackClock "0:00:23"]

1. e4 {[%clk 0:03:00]}  c5 {[%clk 0:02:44]} 2. Nf3 {[%clk 0:03:00]}  d6 {[%clk 0:02:44]} 3. d4 {[%clk 0:03:00]}  cxd4 {[%clk 0:02:44]} 4. Nxd4 {[%clk 0:03:00]}  Nf6 {[%clk 0:02:41]} 5. Nc3 {[%clk 0:03:00]}  a6 {[%clk 0:02:42]} 6. Be3 {[%clk 0:02:58]}  h5 {[%clk 0:02:41]} 7. Bc4 {[%clk 0:02:42]}  e6 {[%clk 0:02:41]} 8. Bb3 {[%clk 0:02:34]}  b5 {[%clk 0:02:37]} 9. f3 {[%clk 0:02:29]}  Be7 {[%clk 0:02:37]} 10. Qd2 {[%clk 0:02:27]}  Bd7 {[%clk 0:02:37]} 11. O-O-O {[%clk 0:02:13]}  Qc7 {[%clk 0:02:31]} 12. Kb1 {[%clk 0:02:10]}  Nc6 {[%clk 0:02:28]} 13. Nxc6 {[%clk 0:02:02]}  Bxc6 {[%clk 0:02:29]} 14. Ne2 {[%clk 0:02:02]}  d5 {[%clk 0:02:26]} 15. e5 {[%clk 0:01:38]}  Nd7 {[%clk 0:02:24]} 16. f4 {[%clk 0:01:37]}  b4 {[%clk 0:02:09]} 17. Nd4 {[%clk 0:01:29]}  g6 {[%clk 0:02:05]} 18. Rc1 {[%clk 0:01:23]}  Nc5 {[%clk 0:01:58]} 19. Nxc6 {[%clk 0:00:54]}  Qxc6 {[%clk 0:01:57]} 20. Bxc5 {[%clk 0:00:52]}  Bxc5 {[%clk 0:01:45]} 21. c3 {[%clk 0:00:52]}  Qb6 {[%clk 0:01:41]} 22. Qd3 {[%clk 0:00:27]}  Be3 {[%clk 0:01:35]} 23. Rce1 {[%clk 0:00:26]}  Bxf4 {[%clk 0:01:29]} 24. Qf3 {[%clk 0:00:22]}  Bd2 {[%clk 0:01:22]} 25. Re2 {[%clk 0:00:20]}  bxc3 {[%clk 0:01:21]} 26. bxc3 {[%clk 0:00:20]}  Bg5 {[%clk 0:01:15]} 27. Ka1 {[%clk 0:00:20]}  h4 {[%clk 0:01:00]} 28. Rf1 {[%clk 0:00:18]}  Ra7 {[%clk 0:00:57]} 29. Qg4 {[%clk 0:00:14]}  Rh5 {[%clk 0:00:53]} 30. Bxd5 {[%clk 0:00:12]}  exd5 {[%clk 0:00:49]} 31. e6 {[%clk 0:00:13]}  f5 {[%clk 0:00:48]} 32. Qf3 {[%clk 0:00:07]}  Qc5 {[%clk 0:00:39]} 33. Rb1 {[%clk 0:00:06]}  Bf6 {[%clk 0:00:34]} 34. Rb8+ {[%clk 0:00:05]}  Ke7 {[%clk 0:00:33]} 35. Rc2 {[%clk 0:00:05]}  Qg1+ {[%clk 0:00:26]} 36. Kb2 {[%clk 0:00:05]}  Qxh2 {[%clk 0:00:23]} 37. Qe3 {[%clk 0:00:04]}  Qxb8+ {[%clk 0:00:23]} 0-1


[Site "https://www.chess.com"]

[Event "Titled Tuesday Blitz December 7 2021"]
[White "Wadsworth, Matthew J"]
[Black "Azadaliyev, Jahandar"]
[WhiteFideId "415804"]
[BlackFideId "13425811"]
[WhiteElo "2293"]
[BlackElo "1795"]
[Result "0-1"]
[Round "07"]
[TimeControl "180+1"]
[Date "2021.12.07"]
[WhiteClock "0:00:04"]
[BlackClock "0:00:17"]

1. c4 {[%clk 0:03:00]}  Nf6 {[%clk 0:02:59]} 2. g3 {[%clk 0:02:58]}  e6 {[%clk 0:02:59]} 3. Bg2 {[%clk 0:02:57]}  d5 {[%clk 0:03:00]} 4. Nf3 {[%clk 0:02:57]}  b6 {[%clk 0:03:00]} 5. O-O {[%clk 0:02:56]}  Bb7 {[%clk 0:03:00]} 6. b3 {[%clk 0:02:56]}  Nbd7 {[%clk 0:03:01]} 7. Bb2 {[%clk 0:02:55]}  Be7 {[%clk 0:03:01]} 8. e3 {[%clk 0:02:52]}  O-O {[%clk 0:02:56]} 9. Nc3 {[%clk 0:02:51]}  c5 {[%clk 0:02:56]} 10. Qe2 {[%clk 0:02:50]}  a6 {[%clk 0:02:51]} 11. Rfd1 {[%clk 0:02:46]}  Re8 {[%clk 0:02:50]} 12. cxd5 {[%clk 0:02:37]}  Nxd5 {[%clk 0:02:48]} 13. Nxd5 {[%clk 0:02:37]}  Bxd5 {[%clk 0:02:49]} 14. e4 {[%clk 0:02:38]}  Bb7 {[%clk 0:02:46]} 15. d4 {[%clk 0:02:36]}  Rc8 {[%clk 0:02:29]} 16. dxc5 {[%clk 0:02:21]}  Bxc5 {[%clk 0:02:30]} 17. Ne5 {[%clk 0:02:13]}  Rc7 {[%clk 0:02:13]} 18. Rac1 {[%clk 0:01:47]}  Bc8 {[%clk 0:00:59]} 19. Qg4 {[%clk 0:00:58]}  f6 {[%clk 0:00:53]} 20. Nxd7 {[%clk 0:00:42]}  Rxd7 {[%clk 0:00:54]} 21. Rxd7 {[%clk 0:00:40]}  Bxd7 {[%clk 0:00:52]} 22. Rd1 {[%clk 0:00:35]}  Qe7 {[%clk 0:00:51]} 23. Bf1 {[%clk 0:00:32]}  Bc6 {[%clk 0:00:48]} 24. Bc4 {[%clk 0:00:21]}  b5 {[%clk 0:00:40]} 25. Be2 {[%clk 0:00:21]}  Ba7 {[%clk 0:00:39]} 26. Qf4 {[%clk 0:00:16]}  e5 {[%clk 0:00:37]} 27. Qg4 {[%clk 0:00:13]}  Qc5 {[%clk 0:00:30]} 28. Qf3 {[%clk 0:00:08]}  a5 {[%clk 0:00:22]} 29. Rc1 {[%clk 0:00:07]}  Qb6 {[%clk 0:00:21]} 30. Ba3 {[%clk 0:00:06]}  b4 {[%clk 0:00:19]} 31. Bc4+ {[%clk 0:00:06]}  Kh8 {[%clk 0:00:19]} 32. Bb2 {[%clk 0:00:04]}  Bxe4 {[%clk 0:00:17]} 0-1


[Site "https://www.chess.com"]

[Event "Titled Tuesday Blitz December 7 2021"]
[White "Walter, Szymon"]
[Black "Gasanov, Eldar"]
[WhiteFideId "1172590"]
[BlackFideId "14104466"]
[WhiteElo "2227"]
[BlackElo "2454"]
[Result "0-1"]
[Round "07"]
[TimeControl "180+1"]
[Date "2021.12.07"]
[WhiteClock "0:00:35"]
[BlackClock "0:00:25"]

1. Nf3 {[%clk 0:03:00]}  d5 {[%clk 0:02:58]} 2. g3 {[%clk 0:03:00]}  Bf5 {[%clk 0:02:55]} 3. Bg2 {[%clk 0:03:01]}  e6 {[%clk 0:02:55]} 4. O-O {[%clk 0:03:00]}  Nf6 {[%clk 0:02:55]} 5. c4 {[%clk 0:03:00]}  c6 {[%clk 0:02:53]} 6. b3 {[%clk 0:03:00]}  h6 {[%clk 0:02:51]} 7. Bb2 {[%clk 0:03:01]}  Be7 {[%clk 0:02:49]} 8. d3 {[%clk 0:03:01]}  O-O {[%clk 0:02:49]} 9. Nbd2 {[%clk 0:03:02]}  a5 {[%clk 0:02:48]} 10. Rc1 {[%clk 0:02:57]}  a4 {[%clk 0:02:46]} 11. Re1 {[%clk 0:02:55]}  axb3 {[%clk 0:02:42]} 12. axb3 {[%clk 0:02:56]}  Bb4 {[%clk 0:02:37]} 13. Ra1 {[%clk 0:02:49]}  Nbd7 {[%clk 0:02:32]} 14. Qc2 {[%clk 0:02:46]}  Qb6 {[%clk 0:02:22]} 15. e4 {[%clk 0:02:40]}  dxe4 {[%clk 0:02:18]} 16. dxe4 {[%clk 0:02:41]}  Bh7 {[%clk 0:02:12]} 17. Bc3 {[%clk 0:02:30]}  Rxa1 {[%clk 0:02:05]} 18. Rxa1 {[%clk 0:02:29]}  Bxc3 {[%clk 0:02:02]} 19. Qxc3 {[%clk 0:02:27]}  Nxe4 {[%clk 0:02:01]} 20. Nxe4 {[%clk 0:02:28]}  Bxe4 {[%clk 0:02:01]} 21. Rd1 {[%clk 0:02:27]}  Nf6 {[%clk 0:01:57]} 22. Ne5 {[%clk 0:02:20]}  Rd8 {[%clk 0:01:49]} 23. Rxd8+ {[%clk 0:02:17]}  Qxd8 {[%clk 0:01:50]} 24. Bxe4 {[%clk 0:02:18]}  Qd1+ {[%clk 0:01:39]} 25. Kg2 {[%clk 0:02:17]}  Nxe4 {[%clk 0:01:40]} 26. Qe3 {[%clk 0:02:15]}  Qc2 {[%clk 0:01:35]} 27. Nd7 {[%clk 0:01:40]}  Nd2 {[%clk 0:01:27]} 28. Qc5 {[%clk 0:01:17]}  Qe4+ {[%clk 0:01:17]} 29. Kh3 {[%clk 0:01:17]}  Qf5+ {[%clk 0:00:57]} 30. Qxf5 {[%clk 0:01:07]}  exf5 {[%clk 0:00:58]} 31. Nc5 {[%clk 0:01:08]}  b6 {[%clk 0:00:57]} 32. Na4 {[%clk 0:01:07]}  b5 {[%clk 0:00:52]} 33. cxb5 {[%clk 0:01:07]}  cxb5 {[%clk 0:00:53]} 34. Nc3 {[%clk 0:01:06]}  b4 {[%clk 0:00:45]} 35. Nd5 {[%clk 0:01:06]}  Nxb3 {[%clk 0:00:44]} 36. Nxb4 {[%clk 0:01:07]}  g6 {[%clk 0:00:43]} 37. Nd5 {[%clk 0:01:03]}  Nd2 {[%clk 0:00:41]} 38. g4 {[%clk 0:01:00]}  fxg4+ {[%clk 0:00:39]} 39. Kxg4 {[%clk 0:01:01]}  Kg7 {[%clk 0:00:39]} 40. h4 {[%clk 0:00:59]}  Ne4 {[%clk 0:00:39]} 41. f3 {[%clk 0:00:58]}  Nf6+ {[%clk 0:00:39]} 42. Nxf6 {[%clk 0:00:57]}  Kxf6 {[%clk 0:00:40]} 43. h5 {[%clk 0:00:50]}  Ke5 {[%clk 0:00:30]} 44. Kg3 {[%clk 0:00:35]}  gxh5 {[%clk 0:00:24]} 45. Kh4 {[%clk 0:00:35]}  Kf4 {[%clk 0:00:24]} 46. Kxh5 {[%clk 0:00:34]}  Kxf3 {[%clk 0:00:24]} 47. Kxh6 {[%clk 0:00:35]}  f5 {[%clk 0:00:25]} 48. Kg5 {[%clk 0:00:35]}  f4 {[%clk 0:00:25]} 0-1


[Site "https://www.chess.com"]

[Event "Titled Tuesday Blitz December 7 2021"]
[White "Xiong, Jeffery"]
[Black "Holt, Conrad"]
[WhiteFideId "2047640"]
[BlackFideId "2034387"]
[WhiteElo "3060"]
[BlackElo "2858"]
[Result "1-0"]
[Round "07"]
[TimeControl "180+1"]
[Date "2021.12.07"]
[WhiteClock "0:00:13"]
[BlackClock "0:00:04"]

1. e4 {[%clk 0:03:00]}  e6 {[%clk 0:02:59]} 2. d4 {[%clk 0:03:00]}  d5 {[%clk 0:02:59]} 3. Nc3 {[%clk 0:02:59]}  Nf6 {[%clk 0:02:59]} 4. Bg5 {[%clk 0:02:58]}  dxe4 {[%clk 0:02:58]} 5. Nxe4 {[%clk 0:02:58]}  Be7 {[%clk 0:02:59]} 6. Bxf6 {[%clk 0:02:58]}  Bxf6 {[%clk 0:03:00]} 7. Nf3 {[%clk 0:02:54]}  Nd7 {[%clk 0:03:00]} 8. Bd3 {[%clk 0:02:53]}  c5 {[%clk 0:02:59]} 9. Qe2 {[%clk 0:02:44]}  Qa5+ {[%clk 0:02:59]} 10. c3 {[%clk 0:02:30]}  cxd4 {[%clk 0:02:58]} 11. Nxf6+ {[%clk 0:02:30]}  Nxf6 {[%clk 0:02:59]} 12. Nxd4 {[%clk 0:02:31]}  O-O {[%clk 0:02:58]} 13. O-O {[%clk 0:02:31]}  e5 {[%clk 0:02:58]} 14. Nb5 {[%clk 0:02:27]}  e4 {[%clk 0:02:49]} 15. Bc4 {[%clk 0:02:25]}  Bg4 {[%clk 0:02:49]} 16. Qe3 {[%clk 0:02:24]}  Be6 {[%clk 0:02:34]} 17. Bxe6 {[%clk 0:02:18]}  fxe6 {[%clk 0:02:21]} 18. Nd6 {[%clk 0:02:11]}  Qe5 {[%clk 0:02:20]} 19. Rad1 {[%clk 0:02:08]}  Nd5 {[%clk 0:02:14]} 20. Qc5 {[%clk 0:02:08]}  b6 {[%clk 0:02:04]} 21. Qc6 {[%clk 0:02:09]}  Rad8 {[%clk 0:01:40]} 22. Nc4 {[%clk 0:02:07]}  Qf6 {[%clk 0:01:00]} 23. Ne3 {[%clk 0:01:35]}  Nxe3 {[%clk 0:00:56]} 24. Rxd8 {[%clk 0:01:34]}  Qxd8 {[%clk 0:00:55]} 25. Qxe6+ {[%clk 0:01:34]}  Kh8 {[%clk 0:00:55]} 26. fxe3 {[%clk 0:01:35]}  Rxf1+ {[%clk 0:00:55]} 27. Kxf1 {[%clk 0:01:36]}  Qd1+ {[%clk 0:00:53]} 28. Kf2 {[%clk 0:01:37]}  Qd2+ {[%clk 0:00:53]} 29. Kg3 {[%clk 0:01:32]}  Qxe3+ {[%clk 0:00:51]} 30. Kg4 {[%clk 0:01:32]}  h6 {[%clk 0:00:20]} 31. Qc8+ {[%clk 0:01:26]}  Kh7 {[%clk 0:00:20]} 32. Qf5+ {[%clk 0:01:27]}  Kg8 {[%clk 0:00:21]} 33. Qe6+ {[%clk 0:00:21]}  Kf8 {[%clk 0:00:16]} 34. Qd6+ {[%clk 0:00:16]}  Kf7 {[%clk 0:00:15]} 35. Qf4+ {[%clk 0:00:16]}  Qxf4+ {[%clk 0:00:13]} 36. Kxf4 {[%clk 0:00:17]}  Kf6 {[%clk 0:00:11]} 37. Kxe4 {[%clk 0:00:17]}  h5 {[%clk 0:00:11]} 38. c4 {[%clk 0:00:17]}  h4 {[%clk 0:00:11]} 39. b4 {[%clk 0:00:17]}  Ke6 {[%clk 0:00:09]} 40. c5 {[%clk 0:00:15]}  bxc5 {[%clk 0:00:08]} 41. bxc5 {[%clk 0:00:16]}  g5 {[%clk 0:00:08]} 42. h3 {[%clk 0:00:16]}  a6 {[%clk 0:00:07]} 43. a3 {[%clk 0:00:15]}  Kd7 {[%clk 0:00:04]} 44. Kf5 {[%clk 0:00:11]}  Kc6 {[%clk 0:00:04]} 45. Kxg5 {[%clk 0:00:12]}  Kxc5 {[%clk 0:00:04]} 46. Kxh4 {[%clk 0:00:13]}  Kb5 {[%clk 0:00:04]} 47. g4 {[%clk 0:00:13]} 1-0


[Site "https://www.chess.com"]

[Event "Titled Tuesday Blitz December 7 2021"]
[White "Zhigalko, Sergei"]
[Black "Bayasgalan, Khishigbaatar"]
[WhiteFideId "13502956"]
[BlackFideId "4904311"]
[WhiteElo "2662"]
[BlackElo "1624"]
[Result "1/2-1/2"]
[Round "07"]
[TimeControl "180+1"]
[Date "2021.12.07"]
[WhiteClock "0:00:03"]
[BlackClock "0:00:37"]

1. e4 {[%clk 0:03:00]}  e6 {[%clk 0:02:58]} 2. d4 {[%clk 0:03:01]}  d5 {[%clk 0:02:58]} 3. e5 {[%clk 0:03:01]}  c5 {[%clk 0:02:58]} 4. c3 {[%clk 0:03:02]}  Nc6 {[%clk 0:02:58]} 5. Nf3 {[%clk 0:03:02]}  Qb6 {[%clk 0:02:57]} 6. a3 {[%clk 0:03:02]}  c4 {[%clk 0:02:54]} 7. Nbd2 {[%clk 0:03:02]}  Na5 {[%clk 0:02:54]} 8. Be2 {[%clk 0:03:02]}  Bd7 {[%clk 0:02:54]} 9. O-O {[%clk 0:03:02]}  g6 {[%clk 0:02:48]} 10. h4 {[%clk 0:02:56]}  h5 {[%clk 0:02:47]} 11. Ng5 {[%clk 0:02:56]}  Bg7 {[%clk 0:02:42]} 12. Rb1 {[%clk 0:02:47]}  Nb3 {[%clk 0:02:41]} 13. Nxb3 {[%clk 0:02:47]}  cxb3 {[%clk 0:02:41]} 14. c4 {[%clk 0:02:30]}  dxc4 {[%clk 0:02:22]} 15. Bxc4 {[%clk 0:02:21]}  Ne7 {[%clk 0:02:22]} 16. Bxb3 {[%clk 0:02:10]}  Nf5 {[%clk 0:02:21]} 17. d5 {[%clk 0:02:07]}  O-O {[%clk 0:02:14]} 18. dxe6 {[%clk 0:01:54]}  Bxe6 {[%clk 0:02:13]} 19. Bxe6 {[%clk 0:01:51]}  fxe6 {[%clk 0:02:13]} 20. Qd7 {[%clk 0:01:49]}  Rae8 {[%clk 0:02:11]} 21. Bd2 {[%clk 0:01:10]}  Rd8 {[%clk 0:01:52]} 22. Qxe6+ {[%clk 0:01:07]}  Qxe6 {[%clk 0:01:52]} 23. Nxe6 {[%clk 0:01:08]}  Rxd2 {[%clk 0:01:52]} 24. Nxf8 {[%clk 0:01:09]}  Kxf8 {[%clk 0:01:52]} 25. Rfd1 {[%clk 0:01:02]}  Rxd1+ {[%clk 0:01:49]} 26. Rxd1 {[%clk 0:01:03]}  Bxe5 {[%clk 0:01:49]} 27. b4 {[%clk 0:00:58]}  Ke7 {[%clk 0:01:47]} 28. g3 {[%clk 0:00:57]}  Bb2 {[%clk 0:01:43]} 29. a4 {[%clk 0:00:53]}  Ba3 {[%clk 0:01:41]} 30. b5 {[%clk 0:00:49]}  Bc5 {[%clk 0:01:40]} 31. Kg2 {[%clk 0:00:49]}  Nd6 {[%clk 0:01:39]} 32. Re1+ {[%clk 0:00:47]}  Kf6 {[%clk 0:01:38]} 33. f3 {[%clk 0:00:39]}  b6 {[%clk 0:01:36]} 34. g4 {[%clk 0:00:39]}  Nc4 {[%clk 0:01:31]} 35. Re4 {[%clk 0:00:30]}  Ne3+ {[%clk 0:01:29]} 36. Kh3 {[%clk 0:00:27]}  Nd5 {[%clk 0:01:26]} 37. Kg3 {[%clk 0:00:14]}  Bd6+ {[%clk 0:01:25]} 38. Kf2 {[%clk 0:00:09]}  Bc5+ {[%clk 0:01:24]} 39. Kg2 {[%clk 0:00:07]}  Nc3 {[%clk 0:01:21]} 40. Rc4 {[%clk 0:00:07]}  Nd5 {[%clk 0:01:21]} 41. Kh3 {[%clk 0:00:07]}  Ne3 {[%clk 0:01:20]} 42. Re4 {[%clk 0:00:07]}  Nd5 {[%clk 0:01:19]} 43. Kg2 {[%clk 0:00:05]}  Nc3 {[%clk 0:01:06]} 44. Rc4 {[%clk 0:00:04]}  Ne2 {[%clk 0:01:06]} 45. Kh3 {[%clk 0:00:04]}  Nd4 {[%clk 0:01:05]} 46. Kg3 {[%clk 0:00:03]}  Ke5 {[%clk 0:01:04]} 47. Kh3 {[%clk 0:00:01]}  Kf4 {[%clk 0:01:03]} 48. gxh5 {[%clk 0:00:01]}  gxh5 {[%clk 0:01:03]} 49. Rc3 {[%clk 0:00:01]}  Nxf3 {[%clk 0:01:01]} 50. Rd3 {[%clk 0:00:02]}  Nd4 {[%clk 0:01:00]} 51. Rg3 {[%clk 0:00:02]}  Nf5 {[%clk 0:00:55]} 52. Rg5 {[%clk 0:00:02]}  Bf2 {[%clk 0:00:53]} 53. Rxh5 {[%clk 0:00:01]}  Bxh4 {[%clk 0:00:53]} 54. Rh7 {[%clk 0:00:02]}  Bf2 {[%clk 0:00:52]} 55. Rxa7 {[%clk 0:00:02]}  Nd6 {[%clk 0:00:51]} 56. Rd7 {[%clk 0:00:02]}  Ke5 {[%clk 0:00:50]} 57. Kg2 {[%clk 0:00:02]}  Bc5 {[%clk 0:00:49]} 58. Ra7 {[%clk 0:00:01]}  Nc4 {[%clk 0:00:48]} 59. Kf3 {[%clk 0:00:02]}  Kd4 {[%clk 0:00:48]} 60. Kf4 {[%clk 0:00:01]}  Kc3 {[%clk 0:00:48]} 61. Ke4 {[%clk 0:00:01]}  Kb4 {[%clk 0:00:48]} 62. Kd5 {[%clk 0:00:02]}  Nb2 {[%clk 0:00:48]} 63. a5 {[%clk 0:00:02]}  bxa5 {[%clk 0:00:44]} 64. Rxa5 {[%clk 0:00:02]}  Bb6 {[%clk 0:00:38]} 65. Ra6 {[%clk 0:00:03]}  Kxb5 {[%clk 0:00:37]} 66. Rxb6+ {[%clk 0:00:03]}  Kxb6 {[%clk 0:00:37]} 1/2-1/2


[Site "https://www.chess.com"]

[Event "Titled Tuesday Blitz December 7 2021"]
[White "Zierk, Steven"]
[Black "Rakhmanov, Aleksandr"]
[WhiteFideId "2034255"]
[BlackFideId "4173708"]
[WhiteElo "2494"]
[BlackElo "2500"]
[Result "1-0"]
[Round "07"]
[TimeControl "180+1"]
[Date "2021.12.07"]
[WhiteClock "0:00:18"]
[BlackClock "0:00:04"]

1. e4 {[%clk 0:03:00]}  c5 {[%clk 0:02:52]} 2. Nf3 {[%clk 0:03:01]}  Nf6 {[%clk 0:02:52]} 3. e5 {[%clk 0:02:57]}  Nd5 {[%clk 0:02:52]} 4. Nc3 {[%clk 0:02:56]}  Nxc3 {[%clk 0:02:52]} 5. dxc3 {[%clk 0:02:57]}  Nc6 {[%clk 0:02:52]} 6. Bc4 {[%clk 0:02:53]}  e6 {[%clk 0:02:51]} 7. O-O {[%clk 0:02:50]}  b6 {[%clk 0:02:51]} 8. Bf4 {[%clk 0:02:46]}  h6 {[%clk 0:02:49]} 9. Qe2 {[%clk 0:02:34]}  Qc7 {[%clk 0:02:47]} 10. Nd2 {[%clk 0:02:25]}  Bb7 {[%clk 0:02:46]} 11. Rfd1 {[%clk 0:02:15]}  O-O-O {[%clk 0:02:39]} 12. Ne4 {[%clk 0:01:56]}  f5 {[%clk 0:01:34]} 13. Nd6+ {[%clk 0:01:51]}  Bxd6 {[%clk 0:01:34]} 14. exd6 {[%clk 0:01:44]}  Qb8 {[%clk 0:01:34]} 15. Be5 {[%clk 0:01:41]}  Qa8 {[%clk 0:01:25]} 16. f3 {[%clk 0:01:28]}  Nxe5 {[%clk 0:01:14]} 17. Qxe5 {[%clk 0:01:28]}  g5 {[%clk 0:01:14]} 18. a4 {[%clk 0:01:25]}  g4 {[%clk 0:00:57]} 19. a5 {[%clk 0:01:23]}  gxf3 {[%clk 0:00:37]} 20. axb6 {[%clk 0:01:22]}  Rdg8 {[%clk 0:00:36]} 21. g3 {[%clk 0:01:00]}  f2+ {[%clk 0:00:30]} 22. Kxf2 {[%clk 0:00:56]}  f4 {[%clk 0:00:31]} 23. Rxa7 {[%clk 0:00:48]}  fxg3+ {[%clk 0:00:29]} 24. hxg3 {[%clk 0:00:47]}  Qb8 {[%clk 0:00:23]} 25. Qxc5+ {[%clk 0:00:45]}  Bc6 {[%clk 0:00:23]} 26. Bxe6 {[%clk 0:00:40]}  Rf8+ {[%clk 0:00:13]} 27. Kg1 {[%clk 0:00:39]}  Kd8 {[%clk 0:00:14]} 28. Rxd7+ {[%clk 0:00:19]}  Bxd7 {[%clk 0:00:11]} 29. Qc7+ {[%clk 0:00:20]}  Qxc7 {[%clk 0:00:11]} 30. dxc7+ {[%clk 0:00:21]}  Ke7 {[%clk 0:00:11]} 31. Bxd7 {[%clk 0:00:21]}  Rhg8 {[%clk 0:00:10]} 32. Rd3 {[%clk 0:00:19]}  Rg6 {[%clk 0:00:03]} 33. c8=Q {[%clk 0:00:18]}  Rxc8 {[%clk 0:00:02]} 34. Bxc8 {[%clk 0:00:19]}  Rxb6 {[%clk 0:00:02]} 35. b4 {[%clk 0:00:19]}  Kf6 {[%clk 0:00:03]} 36. Bg4 {[%clk 0:00:18]}  Rc6 {[%clk 0:00:03]} 37. Bf3 {[%clk 0:00:18]}  Kg5 {[%clk 0:00:04]} 38. Bxc6 {[%clk 0:00:18]} 1-0


[Site "https://www.chess.com"]

[Event "Titled Tuesday Blitz December 7 2021"]
[White "Abdilkhair, Abilmansur"]
[Black "Sarkar, Justin"]
[WhiteFideId "13716417"]
[BlackFideId "2010011"]
[WhiteElo "2063"]
[BlackElo "2038"]
[Result "1-0"]
[Round "08"]
[TimeControl "180+1"]
[Date "2021.12.07"]
[WhiteClock "0:00:05"]
[BlackClock "0:00:01"]

1. e4 {[%clk 0:03:00]}  e5 {[%clk 0:02:57]} 2. Nf3 {[%clk 0:03:00]}  Nc6 {[%clk 0:02:56]} 3. d4 {[%clk 0:03:01]}  exd4 {[%clk 0:02:55]} 4. Bc4 {[%clk 0:03:02]}  Bc5 {[%clk 0:02:45]} 5. c3 {[%clk 0:02:58]}  Nf6 {[%clk 0:02:41]} 6. b4 {[%clk 0:02:36]}  Bb6 {[%clk 0:02:35]} 7. a4 {[%clk 0:02:35]}  dxc3 {[%clk 0:01:38]} 8. a5 {[%clk 0:02:26]}  Bxf2+ {[%clk 0:01:35]} 9. Kxf2 {[%clk 0:02:27]}  Nxe4+ {[%clk 0:01:35]} 10. Kg1 {[%clk 0:02:13]}  O-O {[%clk 0:01:23]} 11. Bd5 {[%clk 0:01:36]}  Nf6 {[%clk 0:00:31]} 12. Nxc3 {[%clk 0:01:11]}  Nxb4 {[%clk 0:00:28]} 13. Bg5 {[%clk 0:01:09]}  h6 {[%clk 0:00:25]} 14. Bh4 {[%clk 0:01:06]}  c6 {[%clk 0:00:19]} 15. Bb3 {[%clk 0:01:01]}  d5 {[%clk 0:00:12]} 16. Qd4 {[%clk 0:01:01]}  Na6 {[%clk 0:00:10]} 17. Rf1 {[%clk 0:00:54]}  Qd6 {[%clk 0:00:09]} 18. Bg3 {[%clk 0:00:48]}  Qc5 {[%clk 0:00:08]} 19. Qxc5 {[%clk 0:00:40]}  Nxc5 {[%clk 0:00:08]} 20. Bd1 {[%clk 0:00:41]}  Nfe4 {[%clk 0:00:08]} 21. Be5 {[%clk 0:00:33]}  Nxc3 {[%clk 0:00:07]} 22. Bxc3 {[%clk 0:00:33]}  Ne4 {[%clk 0:00:07]} 23. Bb2 {[%clk 0:00:30]}  c5 {[%clk 0:00:07]} 24. Bc2 {[%clk 0:00:29]}  Be6 {[%clk 0:00:06]} 25. Re1 {[%clk 0:00:22]}  f5 {[%clk 0:00:06]} 26. h4 {[%clk 0:00:19]}  Rfe8 {[%clk 0:00:04]} 27. Kh2 {[%clk 0:00:20]}  Bf7 {[%clk 0:00:04]} 28. Rhf1 {[%clk 0:00:18]}  Rad8 {[%clk 0:00:04]} 29. Ne5 {[%clk 0:00:18]}  Be6 {[%clk 0:00:04]} 30. g4 {[%clk 0:00:16]}  fxg4 {[%clk 0:00:03]} 31. Bxe4 {[%clk 0:00:14]}  dxe4 {[%clk 0:00:03]} 32. Kg3 {[%clk 0:00:13]}  Rd2 {[%clk 0:00:03]} 33. Bc3 {[%clk 0:00:10]}  Rc2 {[%clk 0:00:03]} 34. Re3 {[%clk 0:00:10]}  h5 {[%clk 0:00:03]} 35. Rd1 {[%clk 0:00:05]}  b6 {[%clk 0:00:03]} 36. axb6 {[%clk 0:00:05]}  axb6 {[%clk 0:00:03]} 37. Rd6 {[%clk 0:00:06]}  b5 {[%clk 0:00:03]} 38. Ng6 {[%clk 0:00:04]}  b4 {[%clk 0:00:03]} 39. Be5 {[%clk 0:00:05]}  c4 {[%clk 0:00:03]} 40. Nf4 {[%clk 0:00:05]}  c3 {[%clk 0:00:03]} 41. Rxe6 {[%clk 0:00:04]}  Rxe6 {[%clk 0:00:03]} 42. Nxe6 {[%clk 0:00:05]}  Rc1 {[%clk 0:00:03]} 43. Nd4 {[%clk 0:00:05]}  b3 {[%clk 0:00:02]} 44. Nxb3 {[%clk 0:00:05]}  Rc2 {[%clk 0:00:03]} 45. Rxc3 {[%clk 0:00:04]}  Re2 {[%clk 0:00:01]} 46. Bf4 {[%clk 0:00:04]}  Re1 {[%clk 0:00:01]} 47. Re3 {[%clk 0:00:05]} 1-0


[Site "https://www.chess.com"]

[Event "Titled Tuesday Blitz December 7 2021"]
[White "Aldokhin, Ivan"]
[Black "Bloomer, Josh"]
[WhiteFideId "24115720"]
[BlackFideId "2020416"]
[WhiteElo "2557"]
[BlackElo "2432"]
[Result "1-0"]
[Round "08"]
[TimeControl "180+1"]
[Date "2021.12.07"]
[WhiteClock "0:00:18"]
[BlackClock "0:00:09"]

1. e4 {[%clk 0:03:00]}  c5 {[%clk 0:02:59]} 2. Nf3 {[%clk 0:03:01]}  d6 {[%clk 0:03:00]} 3. d4 {[%clk 0:03:01]}  cxd4 {[%clk 0:03:01]} 4. Nxd4 {[%clk 0:03:02]}  Nf6 {[%clk 0:03:02]} 5. Nc3 {[%clk 0:03:02]}  a6 {[%clk 0:03:02]} 6. Bc4 {[%clk 0:03:02]}  e6 {[%clk 0:03:02]} 7. Bb3 {[%clk 0:03:02]}  b5 {[%clk 0:03:02]} 8. O-O {[%clk 0:02:59]}  Be7 {[%clk 0:03:02]} 9. Qf3 {[%clk 0:02:58]}  Qc7 {[%clk 0:02:58]} 10. Re1 {[%clk 0:02:44]}  O-O {[%clk 0:02:54]} 11. Qg3 {[%clk 0:02:43]}  Kh8 {[%clk 0:02:42]} 12. Bg5 {[%clk 0:02:40]}  Nc6 {[%clk 0:02:25]} 13. Nxc6 {[%clk 0:02:34]}  Qxc6 {[%clk 0:02:25]} 14. Nd5 {[%clk 0:02:27]}  exd5 {[%clk 0:02:13]} 15. Bxf6 {[%clk 0:02:16]}  Bxf6 {[%clk 0:01:54]} 16. Bxd5 {[%clk 0:02:16]}  Qxc2 {[%clk 0:01:54]} 17. Bxa8 {[%clk 0:02:15]}  Bxb2 {[%clk 0:01:54]} 18. Qxd6 {[%clk 0:02:09]}  Rg8 {[%clk 0:01:46]} 19. Rad1 {[%clk 0:01:53]}  Bg4 {[%clk 0:01:15]} 20. f3 {[%clk 0:01:52]}  Bc3 {[%clk 0:01:14]} 21. Rf1 {[%clk 0:01:23]}  Be6 {[%clk 0:01:03]} 22. Bd5 {[%clk 0:01:23]}  Bxd5 {[%clk 0:00:53]} 23. Qxd5 {[%clk 0:01:21]}  b4 {[%clk 0:00:51]} 24. Qxf7 {[%clk 0:01:17]}  Qb2 {[%clk 0:00:49]} 25. Qb3 {[%clk 0:01:14]}  Qe2 {[%clk 0:00:48]} 26. Rd5 {[%clk 0:01:07]}  Rf8 {[%clk 0:00:45]} 27. Rfd1 {[%clk 0:00:53]}  Be1 {[%clk 0:00:39]} 28. Qd3 {[%clk 0:00:39]}  Qf2+ {[%clk 0:00:31]} 29. Kh1 {[%clk 0:00:38]}  h6 {[%clk 0:00:24]} 30. e5 {[%clk 0:00:29]}  Qh4 {[%clk 0:00:21]} 31. Rd8 {[%clk 0:00:24]}  Rxd8 {[%clk 0:00:06]} 32. Qxd8+ {[%clk 0:00:23]}  Qxd8 {[%clk 0:00:07]} 33. Rxd8+ {[%clk 0:00:23]}  Kh7 {[%clk 0:00:08]} 34. e6 {[%clk 0:00:23]}  Bh4 {[%clk 0:00:08]} 35. Rd4 {[%clk 0:00:19]}  a5 {[%clk 0:00:09]} 36. Rxh4 {[%clk 0:00:18]} 1-0


[Site "https://www.chess.com"]